fUSD/lending_fUSD_20260404
["ID","MTS","AMOUNT","RATE_DAILY","PERIOD"]
[419707983,1775328638539,-500.0,0.00013173,2]
[419708001,1775328638874,-500.0,0.00013173,2]
[419708003,1775328638884,-500.0,0.00013173,2]
[419708005,1775328638894,-1979.71839249,0.000133,2]
[419708007,1775328638907,-18846.22841185,0.00013386,2]
[419708009,1775328638917,-7613.80283452,0.00013386,2]
[419708011,1775328638927,-944.27,0.000134,2]
[419708013,1775328638936,-1602.77615536,0.00013413,2]
[419708015,1775328638945,-2456.33359064,0.00013477,2]
[419708018,1775328638955,-182.598912,0.00013495,2]
[419708020,1775328638964,-1000.0,0.00013498,2]
[419708022,1775328638973,-1471842.0075,0.00013498,2]
[419708024,1775328638982,-2602.5491591,0.00013513,2]
[419708026,1775328638991,-308.24,0.00013521,2]
[419708028,1775328639000,-5000.0,0.00013527,2]
[419708030,1775328639010,-448.07422048,0.00013527,2]
[419708032,1775328639019,-250.0,0.00013527,2]
[419708034,1775328639028,-212.04,0.00013537,2]
[419708035,1775328639038,-665.88,0.00013698,2]
[419708037,1775328639047,-500.0,0.00013698,2]
[419708040,1775328639056,-500.0,0.00013698,2]
[419708042,1775328639066,-500.0,0.00013698,2]
[419708044,1775328639075,-500.0,0.00013698,2]
[419708046,1775328639085,-500.0,0.00013698,2]
[419708048,1775328639095,-500.0,0.00013698,2]
[419708050,1775328639104,-500.0,0.00013698,2]
[419708051,1775328639113,-500.0,0.00013698,2]
[419708054,1775328639123,-500.0,0.00013698,2]
[419708055,1775328639132,-500.0,0.00013698,2]
[419708057,1775328639142,-500.0,0.00013698,2]
[419708060,1775328639152,-500.0,0.00013698,2]
[419708062,1775328639161,-500.0,0.00013698,2]
[419708064,1775328639171,-500.0,0.00013698,2]
[419708066,1775328639180,-500.0,0.00013698,2]
[419708068,1775328639189,-500.0,0.00013698,2]
[419708070,1775328639198,-500.0,0.00013698,2]
[419708071,1775328639208,-500.0,0.00013698,2]
[419708073,1775328639217,-412.378583,0.00013698,2]
[419708076,1775328639227,-500.0,0.00013698,2]
[419708078,1775328639236,-500.0,0.00013698,2]
[419708080,1775328639246,-268.57302384,0.00013698,2]
[419708082,1775328639255,-500.0,0.00013698,2]
[419708083,1775328639266,-500.0,0.00013698,2]
[419708084,1775328639275,-500.0,0.00013698,2]
[419708085,1775328639285,-500.0,0.00013698,2]
[419708086,1775328639294,-500.0,0.00013698,2]
[419708087,1775328639304,-500.0,0.00013698,2]
[419708088,1775328639314,-500.0,0.00013698,2]
[419708089,1775328639324,-500.0,0.00013698,2]
[419708090,1775328639333,-500.0,0.00013698,2]
[419708091,1775328639343,-163.1276187,0.00013698,2]
[419708093,1775328639352,-500.0,0.00013698,2]
[419708094,1775328639362,-500.0,0.00013698,2]
[419708095,1775328639371,-500.0,0.00013698,2]
[419708096,1775328639380,-561.59815036,0.00013698,2]
[419708097,1775328639390,-500.0,0.00013698,2]
[419708098,1775328639400,-500.0,0.00013698,2]
[419708099,1775328639413,-540.38303843,0.00013698,2]
[419708100,1775328639423,-500.0,0.00013698,2]
[419708101,1775328639433,-500.0,0.00013698,2]
[419708102,1775328639443,-500.0,0.00013698,2]
[419708103,1775328639453,-500.0,0.00013698,2]
[419708104,1775328639462,-500.0,0.00013698,2]
[419708105,1775328639473,-500.0,0.00013698,2]
[419708106,1775328639483,-500.0,0.00013698,2]
[419708107,1775328639493,-500.0,0.00013698,2]
[419708108,1775328639504,-500.0,0.00013698,2]
[419708109,1775328639514,-500.0,0.00013698,2]
[419708110,1775328639524,-500.0,0.00013698,2]
[419708111,1775328639535,-500.0,0.00013698,2]
[419708112,1775328639545,-500.0,0.00013698,2]
[419708113,1775328639554,-500.0,0.00013698,2]
[419708114,1775328639564,-500.0,0.00013698,2]
[419708115,1775328639574,-500.0,0.00013698,2]
[419708116,1775328639583,-500.0,0.00013698,2]
[419708117,1775328639593,-500.0,0.00013698,2]
[419708118,1775328639603,-500.0,0.00013698,2]
[419708119,1775328639613,-500.0,0.00013698,2]
[419708120,1775328639623,-500.0,0.00013698,2]
[419708121,1775328639633,-500.0,0.00013698,2]
[419708122,1775328639643,-500.0,0.00013698,2]
[419708123,1775328639653,-500.0,0.00013698,2]
[419708124,1775328639663,-500.0,0.00013698,2]
[419708125,1775328639673,-500.0,0.00013698,2]
[419708126,1775328639683,-500.0,0.00013698,2]
[419708127,1775328639694,-500.0,0.00013698,2]
[419708128,1775328639706,-500.0,0.00013698,2]
[419708129,1775328639718,-500.0,0.00013698,2]
[419708130,1775328639728,-500.0,0.00013698,2]
[419708131,1775328639739,-500.0,0.00013698,2]
[419708132,1775328639751,-500.0,0.00013698,2]
[419708133,1775328639761,-500.0,0.00013698,2]
[419708134,1775328639770,-500.0,0.00013698,2]
[419708135,1775328639780,-500.0,0.00013698,2]
[419708136,1775328639791,-500.0,0.00013698,2]
[419708137,1775328639801,-500.0,0.00013698,2]
[419708138,1775328639811,-500.0,0.00013698,2]
[419708139,1775328639821,-500.0,0.00013698,2]
[419708140,1775328639831,-500.0,0.00013698,2]
[419708141,1775328639842,-500.0,0.00013698,2]
[419708142,1775328639852,-500.0,0.00013698,2]
[419708143,1775328639861,-500.0,0.00013698,2]
[419708144,1775328639871,-500.0,0.00013698,2]
[419708145,1775328639882,-500.0,0.00013698,2]
[419708146,1775328639892,-500.0,0.00013698,2]
[419708147,1775328639901,-500.0,0.00013698,2]
[419708148,1775328639911,-500.0,0.00013698,2]
[419708149,1775328639921,-500.0,0.00013698,2]
[419708150,1775328639931,-201.84049751,0.00013698,2]
[419708151,1775328639941,-500.0,0.00013698,2]
[419708152,1775328639951,-491.0,0.00013698,2]
[419708153,1775328639962,-150.0,0.00013699,2]
[419708154,1775328639972,-500.0,0.00013699,2]
[419708155,1775328639982,-500.0,0.00013699,2]
[419708156,1775328639992,-500.0,0.00013699,2]
[419708157,1775328640002,-500.0,0.00013699,2]
[419708158,1775328640012,-500.0,0.00013699,2]
[419708159,1775328640023,-500.0,0.00013699,2]
[419708160,1775328640033,-500.0,0.00013699,2]
[419708161,1775328640043,-501.4995107,0.00013699,2]
[419708162,1775328640052,-500.0,0.00013699,2]
[419708163,1775328640062,-500.0,0.00013699,2]
[419708164,1775328640072,-500.0,0.00013699,2]
[419708165,1775328640081,-500.0,0.00013699,2]
[419708166,1775328640091,-500.0,0.00013699,2]
[419708167,1775328640101,-500.0,0.00013699,2]
[419708168,1775328640110,-500.0,0.00013699,2]
[419708169,1775328640120,-500.0,0.00013699,2]
[419708170,1775328640130,-500.0,0.00013699,2]
[419708171,1775328640140,-306.90768699,0.00013699,2]
[419708172,1775328640149,-500.0,0.00013699,2]
[419708173,1775328640159,-500.0,0.00013699,2]
[419708174,1775328640169,-500.0,0.00013699,2]
[419708175,1775328640179,-500.0,0.00013699,2]
[419708176,1775328640189,-500.0,0.00013699,2]
[419708177,1775328640198,-502.01968107,0.00013699,2]
[419708178,1775328640208,-500.0,0.00013699,2]
[419708179,1775328640217,-609.23348249,0.00013699,2]
[419708180,1775328640227,-500.0,0.00013699,2]
[419708181,1775328640237,-500.0,0.00013699,2]
[419708182,1775328640248,-500.0,0.00013699,2]
[419708183,1775328640259,-500.0,0.00013699,2]
[419708184,1775328640268,-500.0,0.00013699,2]
[419708185,1775328640278,-500.0,0.00013699,2]
[419708186,1775328640288,-500.0,0.00013699,2]
[419708187,1775328640298,-500.0,0.00013699,2]
[419708188,1775328640308,-184.40015724,0.00013699,2]
[419708189,1775328640318,-500.0,0.00013699,2]
[419708190,1775328640328,-700.13141753,0.00013699,2]
[419708191,1775328640338,-672.00857251,0.00013699,2]
[419708192,1775328640349,-500.0,0.00013699,2]
[419708193,1775328640359,-290.9357212,0.00013699,2]
[419708194,1775328640368,-194.0,0.00013699,2]
[419708195,1775328640379,-18846.22841185,0.000137,2]
[419708196,1775328640390,-7613.80283452,0.000137,2]
[419708197,1775328640400,-1000.0,0.00013721,2]
[419708198,1775328640410,-1000.0,0.00013721,2]
[419708199,1775328640420,-1000.0,0.00013721,2]
[419708200,1775328640431,-1000.0,0.00013721,2]
[419708201,1775328640440,-1000.0,0.00013721,2]
[419708202,1775328640451,-1000.0,0.00013721,2]
[419708203,1775328640461,-1000.0,0.00013721,2]
[419708204,1775328640470,-2456.33359064,0.00013881,2]
[419708205,1775328640480,-2000.0,0.00013963,2]
[419708206,1775328640489,-665.88,0.00013972,2]
[419708207,1775328640500,-150.0,0.00013973,2]
[419708208,1775328640510,-18846.22841185,0.00014013,2]
[419708209,1775328640519,-7613.80283452,0.00014013,2]
[419708210,1775328640528,-500.0,0.00014015,2]
[419708211,1775328640538,-165.06846975,0.00014025,2]
[419708212,1775328640547,-255.0,0.00014183,2]
[419708213,1775328640557,-665.88,0.00014246,2]
[419708214,1775328640566,-1000.0,0.00014247,2]
[419708215,1775328640576,-500.67291823,0.00014247,2]
[419708216,1775328640586,-500.92096855,0.00014247,2]
[419708217,1775328640597,-501.1834914,0.00014247,2]
[419708218,1775328640607,-500.0,0.00014247,2]
[419708219,1775328640620,-500.96174367,0.00014247,2]
[419708220,1775328640630,-1000.0,0.00014247,2]
[419708221,1775328640641,-1000.0,0.00014247,2]
[419708222,1775328640651,-1000.0,0.00014247,2]
[419708223,1775328640661,-419.81066253,0.00014247,2]
[419708224,1775328640671,-1000.0,0.00014247,2]
[419708225,1775328640680,-1000.0,0.00014247,2]
[419708226,1775328640689,-710.53546823,0.00014247,2]
[419708227,1775328640700,-602.10958763,0.00014247,2]
[419708228,1775328640710,-826.02015785,0.00014247,2]
[419708229,1775328640721,-502.03101859,0.00014247,2]
[419708230,1775328640730,-1000.0,0.00014247,2]
[419708231,1775328640740,-1000.0,0.00014247,2]
[419708232,1775328640752,-947.27023195,0.00014247,2]
[419708233,1775328640762,-1000.0,0.00014247,2]
[419708234,1775328640773,-500.0,0.00014247,2]
[419708235,1775328640782,-1000.0,0.00014247,2]
[419708236,1775328640794,-952.97866013,0.00014247,2]
[419708237,1775328640806,-503.0996884,0.00014247,2]
[419708238,1775328640816,-1000.0,0.00014247,2]
[419708239,1775328640826,-1000.0,0.00014247,2]
[419708240,1775328640836,-502.19050137,0.00014247,2]
[419708241,1775328640845,-1102.78280616,0.00014268,2]
[419708242,1775328640855,-1500.0,0.00014268,2]
[419708243,1775328640865,-1500.0,0.00014268,2]
[419708244,1775328640874,-1500.0,0.00014268,2]
[419708245,1775328640884,-1500.0,0.00014268,2]
[419708246,1775328640893,-1500.0,0.00014268,2]
[419708247,1775328640902,-1339.64282887,0.00014268,2]
[419708248,1775328640912,-2456.33359064,0.00014285,2]
[419708249,1775328640922,-18846.22841185,0.00014327,2]
[419708250,1775328640933,-7613.80283452,0.00014327,2]
[419708251,1775328640943,-250.0,0.0001435,2]
[419708252,1775328640953,-1680.0,0.00014359,2]
[419708253,1775328640963,-2796.0,0.000144,2]
[419708254,1775328640974,-150.0,0.000144,2]
[419708255,1775328640984,-150.0,0.000144,2]
[419708256,1775328640993,-150.0,0.000144,2]
[419708257,1775328641003,-150.0,0.000144,2]
[419708258,1775328641012,-150.0,0.000144,2]
[419708259,1775328641022,-150.0,0.000144,2]
[419708260,1775328641031,-150.0,0.000144,2]
[419708261,1775328641042,-150.0,0.000144,2]
[419708262,1775328641051,-150.0,0.000144,2]
[419708263,1775328641061,-150.0,0.000144,2]
[419708264,1775328641070,-150.0,0.0001445,2]
[419708265,1775328641080,-150.0,0.00014462,2]
[419708266,1775328641090,-150.0,0.00014464,2]
[419708267,1775328641100,-150.0,0.00014464,2]
[419708268,1775328641109,-150.0,0.00014484,2]
[419708269,1775328641119,-150.0,0.00014494,2]
[419708270,1775328641128,-150.0,0.000145,2]
[419708271,1775328641138,-665.88,0.0001452,2]
[419708272,1775328641147,-150.0,0.00014523,2]
[419708273,1775328641157,-150.0,0.00014528,2]
[419708274,1775328641166,-150.0,0.00014528,2]
[419708275,1775328641176,-150.0,0.0001455,2]
[419708276,1775328641186,-150.0,0.0001456,2]
[419708277,1775328641196,-150.0,0.00014568,2]
[419708278,1775328641204,-150.0,0.00014578,2]
[419708279,1775328641214,-307.35572359,0.00014583,2]
[419708280,1775328641226,-500.0,0.00014583,2]
[419708281,1775328641236,-500.0,0.00014583,2]
[419708282,1775328641245,-165.64274187,0.00014583,2]
[419708283,1775328641255,-150.0,0.00014585,2]
[419708284,1775328641265,-150.0,0.00014588,2]
[419708285,1775328641276,-150.0,0.00014592,2]
[419708286,1775328641287,-150.0,0.00014592,2]
[419708287,1775328641298,-150.0,0.000146,2]
[419708288,1775328641308,-500.0,0.00014613,2]
[419708289,1775328641317,-18846.22841185,0.0001464,2]
[419708290,1775328641328,-150.0,0.00014646,2]
[419708291,1775328641339,-150.0,0.0001465,2]
[419708292,1775328641349,-150.0,0.00014653,2]
[419708293,1775328641358,-1071.94,0.00014654,2]
[419708294,1775328641368,-150.0,0.00014656,2]
[419708295,1775328641377,-150.0,0.00014656,2]
[419708296,1775328641386,-1602.77615534,0.00014657,2]
[419708297,1775328641396,-150.0,0.00014682,2]
[419708298,1775328641406,-2456.33359064,0.00014688,2]
[419708299,1775328641416,-150.0,0.000147,2]
[419708300,1775328641427,-150.0,0.00014708,2]
[419708301,1775328641436,-1572.0,0.0001472,2]
[419708302,1775328641447,-150.0,0.0001472,2]
[419708303,1775328641456,-150.0,0.0001472,2]
[419708304,1775328641466,-150.0,0.0001472,2]
[419708305,1775328641475,-150.0,0.0001472,2]
[419708306,1775328641485,-150.0,0.00014737,2]
[419708307,1775328641496,-150.0,0.0001475,2]
[419708308,1775328641506,-150.0,0.00014756,2]
[419708309,1775328641516,-150.0,0.00014769,2]
[419708310,1775328641525,-150.0,0.00014776,2]
[419708311,1775328641535,-150.0,0.00014784,2]
[419708312,1775328641544,-150.0,0.00014784,2]
[419708313,1775328641554,-665.88,0.00014794,2]
[419708314,1775328641564,-831.51791405,0.00014795,2]
[419708315,1775328641574,-505.31465094,0.00014795,2]
[419708316,1775328641585,-1503.04138262,0.00014795,2]
[419708317,1775328641595,-500.0,0.00014795,2]
[419708318,1775328641606,-1500.0,0.00014795,2]
[419708319,1775328641617,-1081.45389944,0.00014795,2]
[419708320,1775328641627,-1500.0,0.00014795,2]
[419708321,1775328641638,-1500.0,0.00014795,2]
[419708322,1775328641649,-1500.0,0.00014795,2]
[419708323,1775328641660,-1001.15172574,0.00014795,2]
[419708324,1775328641670,-150.0,0.000148,2]
[419708325,1775328641681,-798.88224457,0.00014816,2]
[419708326,1775328641692,-2000.0,0.00014816,2]
[419708327,1775328641704,-2000.0,0.00014816,2]
[419708328,1775328641714,-1061.25077082,0.00014816,2]
[419708329,1775328641724,-2000.0,0.00014816,2]
[419708330,1775328641734,-150.0,0.00014821,2]
[419708331,1775328641745,-154.78244338,0.00014822,2]
[419708332,1775328641755,-150.0,0.00014831,2]
[419708333,1775328641764,-500.0,0.00014838,2]
[419708334,1775328641773,-4387.0,0.0001484,2]
[419708335,1775328641782,-4387.0,0.0001484,2]
[419708336,1775328641791,-4387.0,0.0001484,2]
[419708337,1775328641801,-4387.0,0.0001484,2]
[419708338,1775328641811,-4387.0,0.0001484,2]
[419708339,1775328641821,-4387.0,0.0001484,2]
[419708340,1775328641831,-4387.0,0.0001484,2]
[419708341,1775328641842,-4387.0,0.0001484,2]
[419708342,1775328641852,-4387.0,0.0001484,2]
[419708343,1775328641862,-4387.0,0.0001484,2]
[419708344,1775328641871,-4387.0,0.0001484,2]
[419708345,1775328641880,-4387.0,0.0001484,2]
[419708346,1775328641889,-672.0,0.0001484,2]
[419708347,1775328641899,-4387.0,0.0001484,2]
[419708348,1775328641908,-672.0,0.0001484,2]
[419708349,1775328641918,-4387.0,0.0001484,2]
[419708350,1775328641927,-672.0,0.0001484,2]
[419708351,1775328641936,-672.0,0.0001484,2]
[419708352,1775328641945,-672.0,0.0001484,2]
[419708353,1775328641955,-4387.0,0.0001484,2]
[419708354,1775328641964,-672.0,0.0001484,2]
[419708355,1775328641973,-672.0,0.0001484,2]
[419708356,1775328641982,-672.0,0.0001484,2]
[419708357,1775328641992,-672.0,0.0001484,2]
[419708358,1775328642001,-672.0,0.0001484,2]
[419708359,1775328642010,-4387.0,0.0001484,2]
[419708360,1775328642020,-672.0,0.0001484,2]
[419708361,1775328642029,-672.0,0.0001484,2]
[419708362,1775328642038,-672.0,0.0001484,2]
[419708363,1775328642047,-672.0,0.0001484,2]
[419708364,1775328642057,-672.0,0.0001484,2]
[419708365,1775328642067,-672.0,0.0001484,2]
[419708366,1775328642076,-4387.0,0.0001484,2]
[419708367,1775328642086,-672.0,0.0001484,2]
[419708368,1775328642095,-672.0,0.0001484,2]
[419708369,1775328642104,-4387.0,0.0001484,2]
[419708370,1775328642114,-672.0,0.0001484,2]
[419708371,1775328642123,-4387.0,0.0001484,2]
[419708372,1775328642133,-672.0,0.0001484,2]
[419708373,1775328642143,-672.0,0.0001484,2]
[419708374,1775328642152,-4387.0,0.0001484,2]
[419708375,1775328642162,-672.0,0.0001484,2]
[419708376,1775328642171,-4387.0,0.0001484,2]
[419708377,1775328642181,-672.0,0.0001484,2]
[419708378,1775328642191,-4387.0,0.0001484,2]
[419708379,1775328642200,-692.53940565,0.0001484,2]
[419708380,1775328642210,-4387.0,0.0001484,2]
[419708381,1775328642219,-4399.29355466,0.0001484,2]
[419708382,1775328642229,-150.0,0.00014848,2]
[419708383,1775328642239,-150.0,0.00014848,2]
[419708384,1775328642248,-150.0,0.0001485,2]
[419708385,1775328642257,-150.0,0.00014871,2]
[419708386,1775328642267,-500.0,0.00014873,2]
[419708387,1775328642276,-500.0,0.00014873,2]
[419708388,1775328642286,-150.0,0.0001488,2]
[419708389,1775328642295,-785.54,0.00014887,2]
[419708390,1775328642305,-150.0,0.00014892,2]
[419708391,1775328642314,-150.0,0.000149,2]
[419708392,1775328642324,-150.0,0.00014905,2]
[419708393,1775328642334,-150.0,0.00014912,2]
[419708394,1775328642343,-150.0,0.00014912,2]
[419708395,1775328642352,-150.0,0.00014933,2]
[419708396,1775328642364,-150.0,0.0001495,2]
[419708397,1775328642373,-1798.06,0.00014953,2]
[419708398,1775328642383,-18846.22841185,0.00014954,2]
[419708399,1775328642392,-150.0,0.00014954,2]
[419708400,1775328642402,-165.06846975,0.00014962,2]
[419708401,1775328642411,-150.0,0.00014965,2]
[419708402,1775328642421,-150.0,0.00014976,2]
[419708403,1775328642430,-150.0,0.00014976,2]
[419708404,1775328642440,-150.0,0.00014989,2]
[419708405,1775328642449,-150.0,0.00015,2]
[419708406,1775328642458,-150.0,0.00015015,2]
[419708407,1775328642468,-30000.0,0.0001502,2]
[419708408,1775328642477,-1571.0,0.0001504,2]
[419708409,1775328642486,-150.0,0.0001504,2]
[419708410,1775328642495,-150.0,0.0001504,2]
[419708411,1775328642504,-150.0,0.0001504,2]
[419708412,1775328642514,-150.0,0.0001504,2]
[419708413,1775328642523,-150.0,0.0001505,2]
[419708414,1775328642532,-150.0,0.00015059,2]
[419708415,1775328642541,-2000.0,0.00015059,2]
[419708416,1775328642551,-2000.0,0.00015059,2]
[419708417,1775328642559,-2000.0,0.00015059,2]
[419708418,1775328642568,-2000.0,0.00015059,2]
[419708419,1775328642577,-2000.0,0.00015059,2]
[419708420,1775328642586,-2000.0,0.00015059,2]
[419708421,1775328642595,-2000.0,0.00015059,2]
[419708422,1775328642604,-2000.0,0.00015059,2]
[419708423,1775328642613,-2000.0,0.00015059,2]
[419708424,1775328642622,-2000.0,0.00015059,2]
[419708425,1775328642632,-1400.0,0.00015059,2]
[419708426,1775328642641,-1400.0,0.00015059,2]
[419708427,1775328642650,-1400.0,0.00015059,2]
[419708428,1775328642659,-1400.0,0.00015059,2]
[419708429,1775328642668,-1400.0,0.00015059,2]
[419708430,1775328642677,-1400.0,0.00015059,2]
[419708431,1775328642687,-1400.0,0.00015059,2]
[419708432,1775328642696,-1400.0,0.00015059,2]
[419708433,1775328642705,-1400.0,0.00015059,2]
[419708434,1775328642714,-1077.0,0.00015059,2]
[419708435,1775328642723,-665.9191124,0.00015068,2]
[419708436,1775328642732,-800.0,0.00015068,2]
[419708437,1775328642741,-150.0,0.00015074,2]
[419708438,1775328642750,-150.0,0.00015077,2]
[419708439,1775328642759,-238.76354283,0.00015084,2]
[419708440,1775328642768,-217.51540987,0.00015084,2]
[419708441,1775328642778,-250.44802124,0.00015091,2]
[419708442,1775328642787,-2456.33359064,0.00015092,2]
[419708443,1775328642796,-150.0,0.000151,2]
[419708444,1775328642806,-212.04,0.00015102,2]
[419708445,1775328642815,-308.24,0.00015103,2]
[419708446,1775328642824,-150.0,0.00015104,2]
[419708447,1775328642833,-150.0,0.00015104,2]
[419708448,1775328642843,-150.0,0.00015111,2]
[419708449,1775328642853,-500.0,0.00015131,2]
[419708450,1775328642863,-150.0,0.00015138,2]
[419708451,1775328642873,-150.0,0.0001515,2]
[419708452,1775328642882,-150.0,0.00015153,2]
[419708453,1775328642891,-150.0,0.00015158,2]
[419708454,1775328642900,-785.54,0.00015161,2]
[419708455,1775328642910,-150.0,0.00015168,2]
[419708456,1775328642919,-150.0,0.00015168,2]
[419708457,1775328642929,-500.0,0.00015199,2]
[419708458,1775328642938,-1428.38747117,0.00015199,2]
[419708459,1775328642949,-200.0,0.00015199,2]
[419708460,1775328642959,-743.50770149,0.00015199,2]
[419708461,1775328642970,-151.0,0.00015199,2]
[419708462,1775328642981,-500.0,0.00015199,2]
[419708463,1775328643240,-174.61919141,0.00015199,2]
[419708464,1775328643251,-500.0,0.00015199,2]
[419708465,1775328643261,-500.0,0.00015199,2]
[419708466,1775328643270,-500.0,0.00015199,2]
[419708467,1775328643280,-200.0,0.00015199,2]
[419708468,1775328643291,-500.0,0.00015199,2]
[419708469,1775328643300,-500.0,0.00015199,2]
[419708470,1775328643311,-500.0,0.00015199,2]
[419708471,1775328643321,-319.32250207,0.00015199,2]
[419708472,1775328643330,-150.0,0.000152,2]
[419708473,1775328643340,-150.0,0.000152,2]
[419708474,1775328643350,-150.0,0.000152,2]
[419708475,1775328643359,-10000.0,0.00015205,2]
[419708476,1775328643369,-150.0,0.00015232,2]
[419708477,1775328643379,-150.0,0.00015232,2]
[419708478,1775328643388,-150.0,0.00015242,2]
[419708479,1775328643398,-150.0,0.00015247,2]
[419708480,1775328643408,-150.0,0.0001525,2]
[419708481,1775328643417,-500.0,0.00015254,2]
[419708482,1775328643427,-151.0,0.00015254,2]
[419708483,1775328643436,-150.0,0.00015262,2]
[419708484,1775328643446,-18846.22841185,0.00015267,2]
[419708485,1775328643455,-150.0,0.00015289,2]
[419708486,1775328643464,-150.0,0.00015296,2]
[419708487,1775328643474,-150.0,0.00015296,2]
[419708488,1775328643484,-150.0,0.000153,2]
[419708489,1775328643493,-563.32898353,0.00015301,2]
[419708490,1775328643503,-500.0,0.00015309,2]
[419708491,1775328643513,-151.0,0.00015309,2]
[419708492,1775328643522,-150.0,0.00015323,2]
[419708493,1775328643531,-150.0,0.00015326,2]
[419708494,1775328643540,-150.0,0.00015341,2]
[419708495,1775328643550,-374.28257311,0.00015342,2]
[419708496,1775328643560,-1504.16690782,0.00015342,2]
[419708497,1775328643570,-2000.0,0.00015342,2]
[419708498,1775328643580,-2000.0,0.00015342,2]
[419708499,1775328643590,-150.0,0.0001535,2]
[419708500,1775328643599,-150.0,0.0001536,2]
[419708501,1775328643608,-150.0,0.0001536,2]
[419708502,1775328643618,-150.0,0.0001536,2]
[419708503,1775328643627,-150.0,0.0001536,2]
[419708504,1775328643636,-153.0,0.00015363,2]
[419708505,1775328643646,-500.0,0.00015364,2]
[419708506,1775328643655,-151.0,0.00015364,2]
[419708507,1775328643665,-2004.34724751,0.00015364,2]
[419708508,1775328643675,-511.5547996,0.00015364,2]
[419708509,1775328643684,-2500.0,0.00015364,2]
[419708510,1775328643694,-150.0,0.00015385,2]
[419708511,1775328643704,-433.0,0.00015386,2]
[419708512,1775328643713,-150.0,0.000154,2]
[419708513,1775328643722,-2000.0,0.000154,2]
[419708514,1775328643731,-2000.0,0.00015401,2]
[419708515,1775328643741,-291.58606012,0.00015401,2]
[419708516,1775328643750,-564.46766763,0.00015401,2]
[419708517,1775328643760,-240.97793181,0.00015401,2]
[419708518,1775328643769,-150.0,0.00015411,2]
[419708519,1775328643778,-177.15026946,0.00015414,2]
[419708520,1775328643788,-500.0,0.00015419,2]
[419708521,1775328643798,-151.0,0.00015419,2]
[419708522,1775328643807,-597.01949969,0.00015421,2]
[419708523,1775328643817,-150.0,0.00015424,2]
[419708524,1775328643826,-150.0,0.00015424,2]
[419708525,1775328643836,-212.04,0.00015428,2]
[419708526,1775328643845,-201.93,0.00015435,2]
[419708527,1775328643855,-785.54,0.00015435,2]
[419708528,1775328643864,-150.0,0.00015435,2]
[419708529,1775328643874,-150.0,0.00015446,2]
[419708530,1775328643883,-150.0,0.0001545,2]
[419708531,1775328643892,-317.48224313,0.00015458,2]
[419708532,1775328643902,-231.76270006,0.00015463,2]
[419708533,1775328643911,-231.0925704,0.00015463,2]
[419708534,1775328643920,-150.0,0.00015467,2]
[419708535,1775328643930,-500.0,0.00015474,2]
[419708536,1775328643939,-151.0,0.00015474,2]
[419708537,1775328643949,-150.0,0.00015488,2]
[419708538,1775328643959,-150.0,0.00015488,2]
[419708539,1775328643968,-150.0,0.00015495,2]
[419708540,1775328643977,-2456.33359064,0.00015496,2]
[419708541,1775328643987,-308.24,0.00015499,2]